bitfinex/quotes_ETHUSD_20250620
["timestamp","ask_amount","ask_price","bid_price","bid_amount"]
[1750428965678,0.7585,2537.3,2537.0,3.94155801]
[1750428965851,0.7585,2537.3,2536.6,3.94223349]
[1750428965852,10.0,2537.1,2536.6,3.94223349]
[1750428966032,10.0,2537.1,2536.9,3.94176501]
[1750428966370,16.718,2537.0,2536.9,3.94181875]
[1750428966664,6.718,2537.0,2536.9,3.94181875]
[1750428966880,10.0,2537.1,2536.3,1.56664442]
[1750428967046,10.0,2537.1,2537.0,3.94166338]
[1750428967431,0.811,2537.6,2537.5,3.94088669]
[1750428967651,0.811,2537.6,2537.1,3.94150802]
[1750428967652,6.716,2537.6,2537.4,3.94098221]
[1750428967831,10.0,2537.5,2537.4,3.94098221]
[1750428968556,0.811,2537.9,2537.6,3.94073139]
[1750428968759,10.0,2537.7,2537.6,3.94073139]
[1750428969232,6.714,2537.8,2537.6,3.94073139]
[1750428969467,10.0,2537.7,2537.6,3.94073139]
[1750428969837,10.0,2537.7,2537.5,3.94080182]
[1750428970167,10.0,2537.7,2537.6,3.94073139]
[1750428970374,10.0,2537.7,2537.5,3.94077456]
[1750428970559,10.0,2537.7,2537.6,3.94073139]
[1750428972949,10.0,2537.7,2537.5,4.77095813]
[1750428973143,10.0,2537.7,2537.6,3.94073139]
[1750428974347,10.0,2537.7,2537.3,3.94107934]
[1750428974554,10.0,2537.7,2537.2,0.8301]
[1750428974753,10.0,2537.5,2537.4,3.94101241]
[1750428975083,16.697,2537.6,2537.5,3.94088669]
[1750428975495,10.0,2537.6,2537.5,3.94088669]
[1750428976956,6.691,2537.6,2537.0,0.78834767]
[1750428977163,1.74417,2537.5,2536.9,0.7896]
[1750428977362,10.0,2537.3,2537.0,3.94164504]
[1750428977664,15.6851212,2537.5,2537.1,3.94148665]
[1750428977665,16.692,2537.2,2537.1,3.94148665]
[1750428977876,16.693,2537.2,2537.1,3.94148665]
[1750428978079,10.0,2537.2,2537.1,3.94148665]
[1750428980999,10.0,2537.2,2537.0,3.94157155]
[1750428981388,10.0,2537.2,2536.6,0.7526]
[1750428981389,17.4588,2537.1,2536.6,0.7526]
[1750428981704,17.4588,2537.1,2536.8,3.94186988]
[1750428982006,21.40042732,2537.1,2536.6,3.94215868]
[1750428982306,7.4588,2537.1,2536.2,4.74690131]
[1750428982604,9.2868,2537.1,2536.3,4.45686424]
[1750428982797,9.2868,2537.1,2536.8,3.94190716]
[1750428983367,9.2868,2537.1,2536.7,3.9420412]
[1750428983602,9.2868,2537.1,2536.8,3.94194992]
[1750428983801,10.0,2536.9,2536.8,3.94194992]
[1750428984132,10.0,2536.9,2536.7,3.9420384]
[1750428984296,6.678,2536.8,2536.6,3.94221485]
[1750428984671,6.678,2536.8,2536.7,3.94212953]
[1750428985272,6.678,2536.8,2536.6,3.94225209]
[1750428985479,6.678,2536.8,2536.3,3.94275125]
[1750428985890,10.0,2536.7,2536.4,3.9425958]
[1750428986080,6.673,2536.6,2536.5,3.94240475]
[1750428986281,6.673,2536.6,2536.4,3.94251884]
[1750428986477,10.8215,2536.5,2535.5,0.7634]
[1750428986677,0.8215,2536.0,2535.0,0.8013]
[1750428986917,18.86955851,2535.9,2535.0,0.8013]
[1750428987117,22.83611264,2535.9,2535.4,3.94406479]
[1750428987301,10.0,2535.7,2535.3,3.94423263]
[1750428987502,6.679,2535.6,2535.1,3.94461756]
[1750428987820,16.679,2535.6,2535.5,3.94399526]
[1750428988026,16.679,2535.6,2535.4,3.94405846]
[1750428988320,10.0,2535.6,2535.5,3.94399526]
[1750428989729,6.678,2535.9,2535.5,3.94399526]
[1750428990021,12.98584373,2536.4,2536.0,3.94314485]
[1750428990230,12.98584373,2536.4,2535.5,0.8096]
[1750428990231,18.36883539,2536.3,2536.1,3.94299228]
[1750428990429,6.676,2536.2,2536.1,3.94299228]
[1750428990636,6.676,2536.2,2535.9,3.94325002]
[1750428990637,6.676,2536.2,2536.0,3.94313698]
[1750428990803,10.0,2536.1,2536.0,3.94313698]
[1750428991215,6.676,2536.2,2536.1,3.94306218]
[1750428991454,16.676,2536.3,2536.1,3.94300112]
[1750428991602,10.0,2536.2,2536.1,3.94300112]
[1750428991797,6.676,2536.3,2536.2,3.94290671]
[1750428992535,10.8295,2536.7,2536.0,0.8013]
[1750428992735,6.673,2536.9,2536.2,3.94290671]
[1750428992940,10.61496715,2536.9,2536.4,3.94249976]
[1750428993239,3.94226018,2536.7,2536.2,3.94287782]
[1750428993540,10.0,2536.5,2536.2,3.9429055]
[1750428993704,10.0,2536.5,2536.3,3.94262215]
[1750428993904,10.0,2536.5,2536.3,3.94262126]
[1750428994341,10.0,2536.5,2536.4,3.9425958]
[1750428995540,10.0,2536.5,2536.3,3.94268399]
[1750428995715,10.0,2536.5,2536.4,3.9425958]
[1750428996509,11.806,2536.9,2536.5,3.94233053]
[1750428996731,6.667,2536.8,2536.5,3.94233053]
[1750428996936,11.806,2536.9,2536.8,3.94197414]
[1750428996937,1.806,2536.9,2536.8,3.94197414]
[1750428997145,8.472,2536.9,2536.5,3.94232322]
[1750428997305,3.94239091,2536.6,2536.1,3.94298361]
[1750428997505,17.4425,2536.5,2535.7,0.8029]
[1750428997717,10.0,2536.2,2535.8,3.94342991]
[1750428997921,10.0,2536.0,2535.5,0.8029]
[1750428998143,10.7826,2536.1,2535.8,3.94341991]
[1750428998438,6.679,2536.0,2535.8,3.94341991]
[1750428998604,6.679,2536.0,2535.9,3.94337316]
[1750429000308,6.679,2536.0,2535.8,3.94344493]
[1750429000510,6.679,2536.0,2535.8,3.94352866]
[1750429001140,6.679,2536.0,2535.7,3.94353042]
[1750429001329,6.679,2536.0,2535.8,3.94349933]
[1750429001533,6.679,2536.0,2535.7,3.9436537]
[1750429002755,6.679,2536.0,2535.8,3.94351955]
[1750429002963,6.679,2536.0,2535.9,3.94337316]
[1750429004167,6.679,2536.0,2535.8,3.94348748]
[1750429004663,6.679,2536.0,2535.9,3.94337316]
[1750429004844,6.679,2536.0,2535.8,3.94343852]
[1750429005624,6.679,2536.0,2535.9,3.94337316]
[1750429007718,0.7734,2536.4,2535.7,3.94368418]
[1750429007935,10.0,2536.5,2535.4,3.94399955]
[1750429007936,6.662,2536.3,2535.9,0.7777]
[1750429008136,6.662,2536.3,2536.1,3.94294883]
[1750429008355,6.662,2536.3,2536.0,3.9431505]
[1750429008356,6.662,2536.3,2536.0,3.94312454]
[1750429008561,6.662,2536.3,2535.7,0.7621]
[1750429008735,10.0,2536.1,2535.7,3.94359025]
[1750429009052,10.0,2536.1,2535.6,3.94375423]
[1750429009053,10.0,2536.0,2535.6,3.94375423]
[1750429009252,6.665,2535.9,2535.8,3.94352866]
[1750429009964,6.665,2535.9,2535.4,0.7621]
[1750429010277,6.665,2535.9,2535.1,4.70663193]
[1750429010278,3.94394712,2535.6,2535.1,4.70663193]
[1750429010432,20.61008225,2535.5,2534.8,0.7621]
[1750429010760,20.61008225,2535.5,2535.0,3.94467924]
[1750429010926,20.61008225,2535.5,2534.8,4.70710449]
[1750429010927,10.0,2535.3,2534.8,4.70710449]
[1750429011124,21.36273005,2535.2,2534.7,3.94519141]
[1750429011362,18.4182,2535.2,2534.8,3.94507535]
[1750429011564,18.4182,2535.2,2534.9,3.94492331]
[1750429011861,18.4182,2535.2,2534.4,4.77511744]
[1750429012061,18.4182,2535.2,2534.7,3.94521388]
[1750429012265,3.29883743,2535.1,2534.8,3.94505074]
[1750429012464,6.666,2535.1,2534.7,3.94520385]
[1750429012759,6.666,2535.1,2534.8,3.94505216]
[1750429012982,0.7522,2535.4,2534.7,3.94524006]
[1750429013151,10.0,2535.6,2535.5,3.94391105]
[1750429013465,6.668,2535.6,2535.5,3.94391105]
[1750429013834,6.668,2535.6,2535.4,3.94406323]
[1750429014248,6.668,2535.6,2535.5,3.94399526]
[1750429015276,0.39952963,2535.9,2535.8,3.94352866]
[1750429015510,2.5592,2536.7,2536.1,3.94306218]
[1750429015644,6.666,2536.6,2536.1,3.94306218]
[1750429015843,10.0,2536.5,2536.1,3.94306218]
[1750429016253,13.94245868,2536.5,2536.1,3.94306218]
[1750429016444,6.668,2536.3,2536.1,3.94306218]
[1750429016845,11.78596003,2536.2,2535.5,1.58561397]
[1750429017047,11.78596003,2536.2,2535.9,3.94330182]
[1750429017368,10.0,2536.0,2535.6,3.94378657]
[1750429017561,10.0,2536.0,2535.9,3.94337316]
[1750429018143,8.45496003,2536.2,2536.0,3.94315939]
[1750429018344,11.78596003,2536.2,2536.1,3.94306218]
[1750429018579,18.45496003,2536.2,2536.1,3.94306218]
[1750429018962,11.78596003,2536.2,2536.1,3.94306218]
[1750429020343,1.78596003,2536.2,2536.0,3.9431352]
[1750429020854,16.663,2536.1,2535.8,3.94352503]
[1750429021162,10.0,2536.1,2535.9,3.94322022]
[1750429021364,10.0,2536.1,2535.8,3.94345259]
[1750429021906,10.0,2535.9,2535.2,0.7954]
[1750429022068,10.0,2535.9,2535.2,3.94445372]
[1750429022069,10.0,2535.7,2535.2,3.94445372]
[1750429022266,10.0,2535.5,2534.8,0.7954]
[1750429022486,10.0,2535.3,2534.8,1.26946365]
[1750429022683,10.0,2535.3,2534.8,3.94493654]
[1750429022684,6.664,2535.2,2534.8,3.94493654]
[1750429022909,10.0,2535.1,2534.5,0.7954]
[1750429023109,10.0,2534.9,2534.5,0.7954]
[1750429023284,6.664,2534.8,2534.6,3.94537456]
[1750429023487,16.664,2534.8,2534.7,3.94524006]
[1750429024304,16.664,2534.8,2534.6,3.94531714]
[1750429024470,16.664,2534.8,2534.2,0.7954]
[1750429024471,10.0,2534.7,2534.2,0.7954]
[1750429024668,6.663,2534.6,2533.9,0.7896]
[1750429024874,6.663,2534.6,2534.5,3.94555139]
[1750429025104,6.663,2534.6,2534.4,3.94562437]
[1750429025484,6.663,2534.6,2534.2,3.9459199]
[1750429025692,0.7795,2534.8,2534.4,3.94563753]
[1750429026006,10.0,2534.6,2534.3,3.94583776]
[1750429026212,10.0,2534.4,2533.7,2.58888742]
[1750429026416,10.7795,2534.2,2533.6,0.7896]
[1750429026614,10.0,2534.0,2533.9,3.94640172]
[1750429026775,0.7795,2534.2,2534.1,3.94617418]
[1750429026973,16.662,2534.2,2534.1,3.94617418]
[1750429027476,16.662,2534.2,2534.0,3.9463076]
[1750429027477,10.0,2534.1,2534.0,3.94626616]
[1750429027687,16.662,2534.2,2534.1,3.94617418]
[1750429028120,6.662,2534.2,2534.0,3.94632991]
[1750429028414,10.7795,2534.5,2534.0,3.94632991]
[1750429028604,8.465,2534.4,2534.1,3.94615815]
[1750429028806,8.465,2534.4,2534.0,3.94624806]
[1750429029005,18.465,2534.4,2533.8,3.94655976]
[1750429029218,10.0,2534.2,2534.1,3.94616349]
[1750429029709,10.0,2534.2,2533.8,3.94653931]
[1750429030011,10.0,2534.4,2534.1,3.94616458]
[1750429030215,10.0,2534.2,2534.1,3.94616458]
[1750429030525,11.88052733,2534.4,2534.2,3.94594156]
[1750429030526,11.801,2534.4,2534.2,3.94594156]
[1750429030815,10.0,2534.2,2534.1,3.94608655]
[1750429031184,10.0,2534.2,2534.0,3.94625966]
[1750429031512,10.0,2534.0,2533.9,3.94642461]
[1750429031714,16.662,2534.1,2534.0,3.94632991]
[1750429031715,6.662,2534.1,2534.0,3.94632991]
[1750429031915,6.662,2534.1,2532.8,9.471]
[1750429031916,7.3282,2534.1,2532.8,13.41912513]
[1750429032215,3.94648565,2533.9,2533.4,3.94719015]
[1750429032417,0.7577,2533.6,2532.5,0.8014]
[1750429032718,8.464,2533.8,2531.8,0.8014]
[1750429032719,11.10279805,2532.9,2531.8,0.8014]
[1750429032918,16.665,2532.8,2531.9,4.60483273]
[1750429033120,16.665,2532.8,2531.9,0.65522967]
[1750429033291,16.665,2532.8,2531.8,0.8014]
[1750429033292,10.0,2532.6,2531.8,0.8014]
[1750429033491,6.668,2532.5,2532.2,3.94903397]
[1750429033806,10.8123,2532.3,2531.4,0.8071]
[1750429034004,10.8123,2532.3,2531.8,3.94968206]
[1750429034005,10.0,2532.1,2531.8,3.94968206]
[1750429034205,10.0,2531.9,2531.8,3.94975906]
[1750429034416,16.678,2531.9,2531.8,3.94975906]
[1750429035439,1.7289772,2532.1,2531.8,3.94975906]
[1750429035440,1.7289772,2532.1,2532.0,3.94944707]
[1750429035640,1.7289772,2532.1,2532.0,4.77174707]
[1750429036919,1.7289772,2532.1,2532.0,4.81123804]
[1750429037645,1.7289772,2532.1,2532.0,11.45974707]
[1750429037944,1.7289772,2532.1,2532.0,4.77174707]
[1750429038149,1.7289772,2532.1,2532.0,6.88754024]
[1750429038307,1.7289772,2532.1,2532.0,6.84805149]
[1750429038934,6.686,2532.9,2532.0,6.84805149]
[1750429038935,6.686,2532.9,2532.8,3.94819962]
[1750429039133,6.685,2533.2,2533.1,3.947636]
[1750429039443,16.685,2533.2,2533.1,3.947636]
[1750429040619,16.684,2533.2,2533.1,3.947636]
[1750429041511,10.0,2533.2,2533.1,3.947636]
[1750429041713,0.824,2533.8,2533.2,3.94757618]
[1750429042047,7.506,2533.8,2533.7,3.94679717]
[1750429042429,10.0,2533.7,2533.1,0.64876072]
[1750429042742,10.0,2533.7,2532.6,3.94850125]
[1750429042743,0.791,2533.3,2532.2,4.74402393]
[1750429042904,10.0,2533.0,2532.6,3.94843213]
[1750429043109,10.0,2532.8,2532.2,0.795]
[1750429043310,10.0,2532.6,2532.2,3.94912642]
[1750429043549,0.791,2532.7,2532.4,3.94882325]
[1750429043711,10.0,2532.7,2532.6,3.94851141]
[1750429044470,10.0,2532.6,2531.8,0.795]
[1750429044625,10.0,2532.8,2532.4,3.94869101]
[1750429044818,6.701,2532.7,2532.5,3.94866732]
[1750429045046,6.701,2532.7,2532.3,3.94890852]
[1750429045256,6.701,2532.7,2531.8,0.795]
[1750429045441,10.0,2532.4,2532.0,3.94935264]
[1750429045620,6.702,2532.3,2532.0,3.94935264]
[1750429045827,8.504,2532.3,2532.0,3.94935264]
[1750429046025,8.504,2532.3,2531.9,3.94960306]
[1750429046255,8.504,2532.3,2532.0,3.94936025]
[1750429046475,10.0,2532.2,2531.5,3.95022713]
[1750429046676,10.0,2532.2,2531.4,0.8116]
[1750429046980,10.0,2532.2,2532.1,3.9492911]
[1750429047278,10.74926678,2532.3,2532.1,3.9492911]
[1750429047279,2.24526678,2532.3,2532.1,3.9492911]
[1750429047428,2.24526678,2532.3,2531.9,3.94951487]
[1750429047429,16.704,2532.2,2531.9,3.94951487]
[1750429047758,10.0,2532.1,2532.0,3.94941579]
[1750429047970,16.702,2532.1,2532.0,3.94941579]
[1750429048174,10.0,2532.1,2532.0,3.94941579]
[1750429048529,10.0,2532.1,2532.0,3.94944707]
[1750429048973,16.7,2532.1,2532.0,3.94944707]
[1750429049342,10.0,2532.1,2532.0,4.73935151]
[1750429050363,6.701,2532.4,2532.0,4.73935151]
[1750429050524,16.701,2532.4,2532.3,3.94897918]
[1750429050731,10.0,2532.4,2532.3,3.94897918]
[1750429053152,16.695,2532.4,2531.5,10.0]
[1750429053462,16.695,2532.4,2531.3,4.95039039]
[1750429053463,10.0,2532.3,2532.2,3.94913513]
[1750429053661,6.695,2532.4,2532.2,3.94913513]
[1750429054066,6.695,2532.4,2532.3,3.94897918]
[1750429056240,0.8265,2532.9,2532.6,3.94838395]
[1750429056440,10.0,2532.8,2532.7,3.9483555]
[1750429056645,1.816,2533.0,2532.8,3.94805586]
[1750429056839,6.687,2532.9,2532.7,3.94827781]
[1750429057045,6.686,2532.8,2532.7,3.94827781]
[1750429057470,6.686,2532.8,2532.6,3.94843571]
[1750429057768,3.8459,2532.8,2532.7,3.9483555]
[1750429058078,16.684,2532.8,2532.7,3.9483555]
[1750429058544,8.7938,2533.2,2532.8,3.94818608]
[1750429058748,8.86308327,2533.1,2532.9,3.94796301]
[1750429059066,10.0,2533.0,2532.8,3.94811355]
[1750429059266,10.0,2532.8,2532.7,3.9483555]
[1750429060704,10.0,2532.8,2532.6,3.94843285]
[1750429061057,10.0,2532.8,2532.7,3.9483555]
[1750429061600,10.36204245,2532.8,2532.7,3.9483555]
[1750429061897,10.0,2532.8,2532.7,3.9483555]
[1750429063779,10.36220825,2532.8,2532.7,3.9483555]
[1750429064095,10.36220579,2532.8,2532.7,3.9483555]
[1750429064293,10.0,2532.8,2532.7,3.9483555]
[1750429064491,10.362283,2532.8,2532.7,3.9483555]
[1750429064678,10.0,2532.8,2532.7,3.9483555]
[1750429064880,0.362471,2532.8,2532.6,3.94850528]
[1750429065180,11.816,2533.1,2532.7,3.9483555]
[1750429065380,1.816,2533.1,2533.0,3.94788787]
[1750429065682,19.07000453,2533.1,2532.7,3.94820529]
[1750429065880,0.8081,2532.9,2532.2,4.7730243]
[1750429066087,6.673,2532.8,2532.5,3.94852355]
[1750429066602,13.90619026,2532.9,2532.7,3.9483555]
[1750429066894,12.6241,2532.9,2532.8,3.94819962]
[1750429067103,1.816,2533.1,2532.9,3.94795486]
[1750429067283,0.36242893,2533.0,2532.9,3.94795486]
[1750429067596,1.816,2533.2,2533.0,3.94774021]
[1750429067783,7.03545773,2533.1,2533.0,3.94774021]
[1750429068167,7.03445773,2533.1,2533.0,3.94774021]
[1750429068360,6.672,2533.1,2533.0,3.94774021]
[1750429068695,7.03443874,2533.1,2533.0,3.94774021]
[1750429068898,9.481,2533.5,2533.4,3.94726454]
[1750429069102,0.36250632,2533.5,2533.4,3.94726454]
[1750429069262,8.49,2533.9,2533.6,3.94686345]
[1750429069460,10.0,2533.8,2533.1,4.77591312]
[1750429069659,10.0,2533.6,2533.3,3.94739603]
[1750429069906,10.0,2533.4,2533.1,3.94759351]
[1750429070071,10.0,2533.2,2533.0,3.94779746]
[1750429070369,6.676,2533.1,2533.0,3.94779746]
[1750429070594,10.0,2533.4,2533.2,3.94748586]
[1750429070797,16.677,2533.3,2533.2,3.94748586]
[1750429071000,16.676,2533.3,2533.2,3.94748586]
[1750429071767,10.0,2533.2,2533.1,3.94761522]
[1750429072164,10.0,2533.2,2533.0,3.94776712]
[1750429072492,6.672,2533.1,2532.9,3.94794492]
[1750429072699,6.672,2533.1,2533.0,3.94788787]
[1750429074269,8.3392,2533.1,2532.8,3.94810215]
[1750429074866,8.3392,2533.1,2532.9,3.94803291]
[1750429075294,11.11859836,2533.3,2533.0,3.94788787]
[1750429075490,10.0,2533.2,2533.0,3.94781143]
[1750429075714,3.9983924,2533.5,2533.0,3.94781143]
[1750429075715,16.67,2533.1,2533.0,5.5330387]
[1750429076214,16.67,2533.1,2533.0,1.58522727]
[1750429076598,16.67,2533.1,2533.0,5.53311514]
[1750429076970,16.67,2533.1,2533.0,1.58522727]
[1750429077521,18.73174219,2533.1,2533.0,1.58522727]
[1750429077884,16.67,2533.1,2533.0,5.53311514]
[1750429079904,10.0,2533.1,2533.0,5.53311514]
[1750429080892,16.67,2533.1,2533.0,5.53311514]
[1750429082785,10.0,2533.1,2533.0,5.53311514]
[1750429084485,6.669,2533.3,2533.0,7.31230401]
[1750429084684,9.771,2533.8,2533.4,3.94714965]
[1750429084885,10.0,2533.6,2533.5,3.94708359]
[1750429085106,10.6158823,2533.7,2533.1,3.94773202]
[1750429085309,11.93878053,2533.7,2533.2,3.94743894]
[1750429085499,10.0,2533.6,2533.2,3.94743894]
[1750429085711,0.8121,2533.4,2533.0,1.58522727]
[1750429085911,6.669,2533.3,2533.1,3.94771991]
[1750429086416,16.669,2533.3,2533.2,3.94757618]
[1750429086610,10.0,2533.3,2533.2,3.94757618]
[1750429087911,10.0,2533.3,2533.2,5.68722852]
[1750429088125,6.669,2533.6,2533.5,3.94710874]
[1750429088423,16.669,2533.6,2533.5,3.94710874]
[1750429088585,10.0,2533.6,2533.5,3.94710874]
[1750429089493,10.0,2533.6,2533.3,3.94733087]
[1750429089692,6.668,2533.5,2533.4,3.94713863]
[1750429090423,6.668,2533.5,2533.3,3.94733264]
[1750429090785,18.2823,2533.5,2533.2,3.94747458]
[1750429090987,10.0,2533.4,2533.1,3.94765085]
[1750429091193,6.668,2533.3,2533.0,5.53301717]
[1750429091616,6.668,2533.3,2533.1,3.94771336]
[1750429091811,16.668,2533.3,2533.2,3.94757618]
[1750429093594,10.0,2533.3,2533.2,4.75807618]
[1750429093799,10.7519,2534.1,2533.7,3.9467314]
[1750429094003,10.0,2533.9,2533.3,3.94740009]
[1750429094292,10.0,2533.7,2533.6,3.94680634]
[1750429095531,10.0,2533.7,2533.5,3.94709768]
[1750429095733,16.668,2533.6,2533.5,3.94709768]
[1750429096799,10.0,2533.6,2533.5,3.94709768]
[1750429097013,16.668,2533.6,2533.5,4.7365337]
[1750429097207,16.668,2533.6,2533.5,3.94709768]
[1750429097806,10.0,2533.6,2533.5,3.94709768]
[1750429098010,16.667,2533.6,2533.5,3.94709768]
[1750429098211,6.667,2533.6,2533.5,3.94710874]
[1750429098515,1.801,2533.8,2533.6,3.94692985]
[1750429098704,6.667,2533.7,2533.6,3.94692985]
[1750429099036,0.7519,2534.1,2533.3,0.03946995]
[1750429099253,6.667,2534.1,2533.7,0.8111]
[1750429099401,10.0,2533.8,2533.3,3.94740203]
[1750429099601,24.5956747,2533.6,2533.3,3.94727272]
[1750429099796,24.5956747,2533.6,2533.1,0.8111]
[1750429099797,6.667,2533.5,2533.4,3.94726454]
[1750429100003,10.0,2533.6,2533.5,3.94710874]
[1750429100296,16.667,2533.6,2533.3,3.94731257]
[1750429100555,0.8065,2533.5,2533.0,1.58522727]
[1750429100835,10.0,2533.2,2533.0,1.58522727]
[1750429100999,17.4803,2533.1,2533.0,1.58522727]
[1750429101452,21.42803202,2533.1,2533.0,1.58522727]
[1750429101607,25.38130434,2533.1,2533.0,1.58522727]
[1750429102135,25.74390286,2533.1,2533.0,1.58522727]
[1750429102340,25.96145199,2533.1,2533.0,1.58522727]
[1750429102526,15.12917084,2533.1,2533.0,1.58522727]
[1750429102832,27.54474726,2533.1,2533.0,1.58522727]
[1750429103309,23.59701524,2533.1,2533.0,1.58522727]
[1750429103515,23.5970415,2533.1,2533.0,1.58522727]
[1750429103936,23.23457232,2533.1,2533.0,1.58522727]
[1750429104301,19.2813,2533.1,2533.0,1.58522727]
[1750429104510,19.64368599,2533.1,2533.0,1.58522727]
[1750429104711,19.64370168,2533.1,2533.0,1.58522727]
[1750429104944,19.2813,2533.1,2533.0,1.58522727]
[1750429105514,33.306491,2533.1,2533.0,1.58522727]
[1750429106749,33.306491,2533.1,2533.0,6.08645266]
[1750429106750,14.025191,2533.1,2533.0,6.08645266]
[1750429107325,10.53943795,2533.1,2533.0,6.90522768]
[1750429107652,2.6235,2534.5,2534.3,3.94586269]
[1750429107825,1.801,2534.5,2534.4,3.94570707]
[1750429108021,8.83542753,2534.5,2534.4,3.94570707]
[1750429108358,14.61282279,2534.5,2534.0,3.94622289]
[1750429108669,14.61282279,2534.5,2533.2,11.16942214]
[1750429108670,10.0,2534.2,2533.4,0.8055]
[1750429108810,10.36243549,2534.4,2533.4,3.94710986]
[1750429108811,10.0,2533.8,2533.4,3.94710986]
[1750429109011,10.0,2533.8,2533.6,3.94695295]
[1750429109012,16.677,2533.7,2533.6,3.94695295]
[1750429109456,10.0,2533.7,2533.6,3.94695295]
[1750429110553,10.0,2533.7,2533.5,3.94701637]
[1750429110719,6.685,2533.6,2533.4,3.94719244]
[1750429110918,6.685,2533.6,2533.5,3.94710874]
[1750429111131,10.0,2533.7,2533.5,3.94710874]
[1750429111332,6.684,2533.6,2533.5,3.94710874]
[1750429111547,6.684,2533.6,2533.4,3.9471856]
[1750429112057,10.0,2533.7,2533.4,3.94712976]
[1750429112219,6.682,2533.6,2533.5,3.94701585]
[1750429113049,10.0,2533.7,2533.6,3.94695295]
[1750429113258,16.678,2533.7,2533.6,3.94695295]
[1750429114017,16.678,2533.7,2533.5,3.94703572]
[1750429114250,16.678,2533.7,2533.6,3.94695295]
[1750429114447,16.678,2533.7,2533.5,3.94703572]
[1750429114448,16.678,2533.7,2533.5,3.94710436]
[1750429114666,16.678,2533.7,2533.6,3.94695295]
[1750429115167,16.678,2533.7,2533.5,3.94702644]
[1750429115369,16.678,2533.7,2533.4,3.94724852]
[1750429115370,10.0,2533.6,2533.4,3.94724852]
[1750429115574,16.674,2533.5,2533.4,3.94726454]
[1750429115920,16.674,2533.5,2533.3,3.9473361]
[1750429116152,16.674,2533.5,2533.4,3.94726454]
[1750429117149,10.0,2533.5,2533.4,4.73672995]
[1750429117657,11.804,2534.3,2534.1,3.94615891]
[1750429117869,0.7768,2534.4,2533.7,3.98625961]
[1750429118046,1.804,2534.6,2534.5,3.94555139]
[1750429118222,8.479,2534.6,2534.3,3.94580866]
[1750429118428,10.0,2534.5,2534.4,3.94570707]
[1750429119042,1.804,2534.6,2534.5,3.94555139]
[1750429119246,11.804,2534.6,2534.5,3.94555139]
[1750429119444,8.475,2534.6,2534.5,3.94555139]
[1750429120327,1.6135418,2534.8,2534.6,3.9452523]
[1750429120531,11.6135418,2534.8,2534.7,3.94524006]
[1750429120958,1.6135418,2534.8,2534.7,3.94524006]
[1750429121282,8.2815418,2534.8,2534.7,3.94524006]
[1750429121432,1.6135418,2534.8,2534.3,0.7691]
[1750429121772,20.90146345,2534.8,2534.5,3.9455182]
[1750429121943,20.90146345,2534.8,2534.6,3.94539213]
[1750429122138,14.23446345,2534.8,2534.3,0.7691]
[1750429122355,1.6135418,2534.8,2534.7,3.94524006]
[1750429122556,11.6135418,2534.8,2534.7,3.94524006]
[1750429122964,11.6135418,2534.8,2534.3,0.7691]
[1750429123273,11.6135418,2534.8,2533.4,1.18597388]
[1750429123274,10.0,2534.6,2534.5,3.94555139]
[1750429124561,1.6135418,2534.8,2534.6,3.94531239]
[1750429124770,6.666,2534.7,2534.6,3.94531239]
[1750429125868,1.6135418,2534.8,2534.7,3.94524006]
[1750429126081,8.2785418,2534.8,2534.7,3.94524006]
[1750429127157,1.6135418,2534.8,2534.7,3.94524006]
[1750429127364,8.2785418,2534.8,2534.7,3.94524006]
[1750429127762,12.0546,2535.6,2535.2,3.94439609]
[1750429127975,6.665,2535.5,2535.2,3.9443921]
[1750429128179,10.0,2535.4,2535.2,3.9443921]
[1750429128340,10.0,2535.2,2535.1,3.94453546]
[1750429128542,6.665,2535.3,2535.1,3.94453546]
[1750429128887,10.0,2534.8,2534.4,3.94570707]
[1750429129170,10.0,2534.6,2534.5,3.94548656]
[1750429129371,10.0,2534.6,2534.3,0.7621]
[1750429129574,10.0,2534.6,2534.1,3.9460911]
[1750429129575,10.0,2534.4,2534.1,3.9460911]
[1750429129739,10.0,2534.2,2534.1,3.9460911]
[1750429130373,10.0,2534.2,2534.0,3.94625324]
[1750429130580,10.0,2534.2,2534.1,3.94617418]
[1750429130880,10.0,2534.2,2534.0,3.9462384]
[1750429131083,16.665,2534.1,2534.0,3.9462384]
[1750429131373,16.665,2534.1,2533.9,3.9464264]
[1750429131575,16.665,2534.1,2534.0,3.94632991]
[1750429131740,10.0,2534.1,2534.0,4.7395565]
[1750429132453,16.665,2534.1,2533.8,3.94651441]
[1750429132765,10.0,2534.0,2533.5,3.94703867]
[1750429132972,28.54238944,2533.8,2533.3,3.94732117]
[1750429133282,7.4192,2533.7,2533.3,3.94732117]
[1750429133464,7.4192,2533.7,2533.4,3.94726007]
[1750429134681,7.4192,2533.7,2533.5,3.94703863]
[1750429134992,10.0,2534.2,2533.6,3.94695295]
[1750429134993,10.0,2534.1,2533.6,3.94695295]
[1750429135293,6.665,2534.0,2533.5,0.39470386]
[1750429135461,6.665,2534.0,2533.1,4.73712482]
[1750429135649,6.665,2534.0,2533.6,3.94686045]
[1750429135851,10.0,2534.1,2533.5,0.0394689]
[1750429136158,6.667,2534.0,2533.8,3.9465133]
[1750429136364,6.667,2534.0,2533.5,0.03946589]
[1750429136605,6.667,2534.0,2533.9,3.94648565]
[1750429136878,6.667,2534.0,2533.8,3.94655931]
[1750429137981,6.667,2534.0,2533.9,3.94648565]
[1750429138160,6.667,2534.0,2533.8,3.94656928]
[1750429138549,10.0,2534.1,2534.0,3.94632991]
[1750429138757,16.667,2534.1,2534.0,3.94632991]
[1750429139048,10.0,2534.2,2534.1,3.94617418]
[1750429139563,20.0,2534.2,2534.1,4.75907418]